[Event "*** Titled Tuesday 3|2 Blitz"]
[Site "Chess.com"]
[Date "2016.10.04"]
[Round "2"]
[White "elefante33"]
[Black "lionheart95"]
[Result "1-0"]
[WhiteElo "2468"]
[BlackElo "2408"]
[TimeControl "180+2"]
[EndTime "17:19:59 PDT"]
[Termination "elefante33 won by resignation"]

1. e4 {[%clk 0:03:02]} 1... e5 {[%clk 0:03:00]} 2. Nf3 {[%clk 0:03:02.6]} 2...
Nc6 {[%clk 0:03:00]} 3. d4 {[%clk 0:03:01.7]} 3... exd4 {[%clk 0:02:59.6]} 4.
Nxd4 {[%clk 0:03:03.4]} 4... Nf6 {[%clk 0:03:00.6]} 5. Nc3 {[%clk 0:03:02.3]}
5... d6 {[%clk 0:02:53.8]} 6. Bb5 {[%clk 0:02:52.3]} 6... Bd7 {[%clk 0:02:54.4]}
7. O-O {[%clk 0:02:49.5]} 7... Be7 {[%clk 0:02:54]} 8. Bf4 {[%clk 0:02:50]} 8...
Nxd4 {[%clk 0:02:48.1]} 9. Qxd4 {[%clk 0:02:44.6]} 9... Bxb5 {[%clk 0:02:41.7]}
10. Nxb5 {[%clk 0:02:44.3]} 10... O-O {[%clk 0:02:41.4]} 11. e5 {[%clk
0:02:39.1]} 11... dxe5 {[%clk 0:02:41.6]} 12. Qxe5 {[%clk 0:02:36.4]} 12... c6
{[%clk 0:02:27.4]} 13. Nc7 {[%clk 0:02:31.9]} 13... Nd7 {[%clk 0:02:02.6]} 14.
Qf5 {[%clk 0:02:19.6]} 14... g6 {[%clk 0:01:58.7]} 15. Qh3 {[%clk 0:02:17.5]}
15... Rc8 {[%clk 0:01:52.2]} 16. Rad1 {[%clk 0:02:15.5]} 16... Rxc7 {[%clk
0:01:37.5]} 17. Bxc7 {[%clk 0:02:14]} 17... Qxc7 {[%clk 0:01:39.4]} 18. Qxd7
{[%clk 0:02:14.2]} 18... Qxd7 {[%clk 0:01:29.4]} 19. Rxd7 {[%clk 0:02:14.3]}
19... Bc5 {[%clk 0:01:30.6]} 20. Rxb7 {[%clk 0:02:08.1]} 20... Re8 {[%clk
0:01:31]} 21. b4 {[%clk 0:02:06.6]} 21... Bb6 {[%clk 0:01:28]} 22. c4 {[%clk
0:02:04.4]} 22... Bd4 {[%clk 0:01:27.8]} 23. Rd7 {[%clk 0:01:50.8]} 23... Re4
{[%clk 0:01:24.1]} 24. a4 {[%clk 0:01:44.4]} 24... Bc3 {[%clk 0:01:21.4]} 25. b5
{[%clk 0:01:40.2]} 25... cxb5 {[%clk 0:01:17.8]} 26. axb5 {[%clk 0:01:40.2]}
26... Bd4 {[%clk 0:01:18.8]} 27. Rc7 {[%clk 0:01:26.8]} 27... Bb6 {[%clk
0:01:18.8]} 28. Rc6 {[%clk 0:01:26.6]} 28... Re5 {[%clk 0:01:19.4]} 29. Rc1
{[%clk 0:01:19.3]} 29... Bd4 {[%clk 0:01:18.9]} 30. Rd6 {[%clk 0:01:13.9]} 30...
Bb2 {[%clk 0:01:15.1]} 31. Rb1 {[%clk 0:01:12.8]} 31... Ba3 {[%clk 0:01:15.7]}
32. Rd8+ {[%clk 0:01:12.7]} 32... Kg7 {[%clk 0:01:16.1]} 33. g3 {[%clk
0:01:13.9]} 33... Re2 {[%clk 0:01:13.5]} 34. Kf1 {[%clk 0:01:13.5]} 34... Rc2
{[%clk 0:01:13.6]} 35. Rc8 {[%clk 0:01:14.1]} 35... h5 {[%clk 0:01:12.4]} 36. h4
{[%clk 0:01:13.4]} 36... Kf6 {[%clk 0:01:12.6]} 37. Rc7 {[%clk 0:01:13.3]} 37...
Kg7 {[%clk 0:01:08]} 38. Re1 {[%clk 0:01:13.6]} 38... Bb4 {[%clk 0:01:06.1]} 39.
Re2 {[%clk 0:01:13.1]} 39... Rc1+ {[%clk 0:01:06.7]} 40. Kg2 {[%clk 0:01:14]}
40... Kf6 {[%clk 0:01:05.6]} 41. Rxa7 {[%clk 0:01:11.8]} 41... Rxc4 {[%clk
0:01:05.5]} 42. Ra4 {[%clk 0:01:12.8]} 1-0

[Event "*** Titled Tuesday 3|2 Blitz"]
[Site "Chess.com"]
[Date "2016.10.04"]
[Round "2"]
[White "3ptdka"]
[Black "talaicito"]
[Result "0-1"]
[WhiteElo "2031"]
[BlackElo "2005"]
[TimeControl "180+2"]
[EndTime "17:20:22 PDT"]
[Termination "talaicito won by resignation"]

1. d4 {[%clk 0:03:02]} 1... e6 {[%clk 0:02:59.4]} 2. c4 {[%clk 0:03:01.8]} 2...
f5 {[%clk 0:03:00.3]} 3. e4 {[%clk 0:02:58.7]} 3... fxe4 {[%clk 0:02:59.4]} 4.
Nc3 {[%clk 0:02:59.9]} 4... Nf6 {[%clk 0:03:00]} 5. f3 {[%clk 0:03:00.9]} 5...
exf3 {[%clk 0:02:42.5]} 6. Nxf3 {[%clk 0:02:59.6]} 6... b6 {[%clk 0:02:40.6]} 7.
Bd3 {[%clk 0:02:57.5]} 7... Bb7 {[%clk 0:02:41.4]} 8. O-O {[%clk 0:02:57.3]}
8... Bd6 {[%clk 0:02:32.3]} 9. Bg5 {[%clk 0:02:52.7]} 9... O-O {[%clk 0:02:31]}
10. Ne5 {[%clk 0:02:51.1]} 10... Qe8 {[%clk 0:02:29.9]} 11. Bxf6 {[%clk
0:02:42.4]} 11... Rxf6 {[%clk 0:02:23.7]} 12. Rxf6 {[%clk 0:02:40.4]} 12... gxf6
{[%clk 0:02:23.1]} 13. Ng4 {[%clk 0:01:46.4]} 13... Qf8 {[%clk 0:02:05.7]} 14.
Qe2 {[%clk 0:01:40.2]} 14... Nc6 {[%clk 0:02:01.2]} 15. Rf1 {[%clk 0:01:27.5]}
15... Nxd4 {[%clk 0:01:57.4]} 16. Qf2 {[%clk 0:01:23.8]} 16... f5 {[%clk
0:01:41.2]} 17. Qh4 {[%clk 0:01:06]} 17... Qg7 {[%clk 0:01:22.7]} 18. Nd5 {[%clk
0:00:14.4]} 18... Bxd5 {[%clk 0:01:02.1]} 19. cxd5 {[%clk 0:00:14.5]} 19... Qxg4
{[%clk 0:00:53.3]} 20. Qf6 {[%clk 0:00:10.5]} 20... Rf8 {[%clk 0:00:48.4]} 21.
Qh6 {[%clk 0:00:09.1]} 21... Qg7 {[%clk 0:00:39.9]} 22. Qe3 {[%clk 0:00:07.7]}
22... e5 {[%clk 0:00:36.8]} 23. Kh1 {[%clk 0:00:07.7]} 23... Rf6 {[%clk
0:00:26.3]} 24. g4 {[%clk 0:00:07.3]} 24... f4 {[%clk 0:00:18.8]} 25. Qe4 {[%clk
0:00:06.5]} 25... Qg6 {[%clk 0:00:16.6]} 26. Qxd4 {[%clk 0:00:03]} 26... exd4
{[%clk 0:00:16.4]} 27. Bxg6 {[%clk 0:00:04.9]} 0-1

[Event "*** Titled Tuesday 3|2 Blitz"]
[Site "Chess.com"]
[Date "2016.10.04"]
[Round "2"]
[White "Kouzari"]
[Black "HKBurwell"]
[Result "1-0"]
[WhiteElo "2463"]
[BlackElo "2398"]
[TimeControl "180+2"]
[EndTime "17:20:48 PDT"]
[Termination "Kouzari won by resignation"]

1. d4 {[%clk 0:03:02]} 1... Nf6 {[%clk 0:03:00.5]} 2. c4 {[%clk 0:03:03.1]} 2...
e6 {[%clk 0:03:01.2]} 3. Nc3 {[%clk 0:03:04.2]} 3... d5 {[%clk 0:03:02.5]} 4.
cxd5 {[%clk 0:03:04.3]} 4... exd5 {[%clk 0:03:04.4]} 5. Bg5 {[%clk 0:03:04.5]}
5... c6 {[%clk 0:03:06.1]} 6. e3 {[%clk 0:03:05.4]} 6... Be7 {[%clk 0:03:07.8]}
7. Bd3 {[%clk 0:03:06.1]} 7... Nbd7 {[%clk 0:03:09.4]} 8. Nf3 {[%clk 0:03:07.2]}
8... O-O {[%clk 0:03:10.5]} 9. O-O {[%clk 0:03:08.7]} 9... Re8 {[%clk 0:03:11]}
10. Qc2 {[%clk 0:03:09.5]} 10... Nf8 {[%clk 0:03:11.7]} 11. h3 {[%clk
0:03:11.1]} 11... g6 {[%clk 0:03:09.5]} 12. Bh6 {[%clk 0:03:12.2]} 12... Ne6
{[%clk 0:03:08.8]} 13. Ne5 {[%clk 0:03:13.2]} 13... Ng7 {[%clk 0:03:07.9]} 14.
g4 {[%clk 0:03:14.4]} 14... Nd7 {[%clk 0:02:43.1]} 15. f4 {[%clk 0:03:12.3]}
15... Nxe5 {[%clk 0:02:28.5]} 16. fxe5 {[%clk 0:03:09.9]} 16... Bg5 {[%clk
0:02:24]} 17. Bxg5 {[%clk 0:03:09.8]} 17... Qxg5 {[%clk 0:02:25.9]} 18. Qf2
{[%clk 0:03:11.2]} 18... Be6 {[%clk 0:02:23.1]} 19. Qf4 {[%clk 0:03:09.4]} 19...
Qh4 {[%clk 0:02:16.8]} 20. Kg2 {[%clk 0:03:09.2]} 20... h5 {[%clk 0:02:15.6]}
21. Qg3 {[%clk 0:02:53.5]} 21... Qg5 {[%clk 0:02:06.5]} 22. Rf4 {[%clk
0:02:53.5]} 22... Bd7 {[%clk 0:01:34.9]} 23. h4 {[%clk 0:02:52.9]} 23... Qe7
{[%clk 0:01:31.7]} 24. g5 {[%clk 0:02:53.9]} 24... Bf5 {[%clk 0:01:31.3]} 25.
Bxf5 {[%clk 0:02:48.6]} 25... Nxf5 {[%clk 0:01:30.7]} 26. Rxf5 {[%clk
0:02:48.2]} 26... gxf5 {[%clk 0:01:31.4]} 27. Rf1 {[%clk 0:02:47.3]} 27... Qd7
{[%clk 0:01:23.5]} 28. Rf4 {[%clk 0:02:42.1]} 28... c5 {[%clk 0:01:01]} 29. Qf3
{[%clk 0:02:41.3]} 29... Rad8 {[%clk 0:00:55]} 30. Rxf5 {[%clk 0:02:33.6]} 30...
cxd4 {[%clk 0:00:47.2]} 31. exd4 {[%clk 0:02:33.7]} 31... b5 {[%clk 0:00:47.6]}
32. Ne2 {[%clk 0:02:32.6]} 32... Rc8 {[%clk 0:00:45.2]} 33. Ng3 {[%clk 0:02:05]}
33... Rc2+ {[%clk 0:00:44.7]} 34. Kh3 {[%clk 0:02:06.5]} 34... Rec8 {[%clk
0:00:10.6]} 35. Nxh5 {[%clk 0:02:07.3]} 35... R8c6 {[%clk 0:00:05.4]} 36. Nf6+
{[%clk 0:02:02.2]} 36... Rxf6 {[%clk 0:00:06.4]} 37. gxf6 {[%clk 0:02:00.3]}
37... Kf8 {[%clk 0:00:07.7]} 38. Qg4 {[%clk 0:01:52.9]} 38... Qc8 {[%clk
0:00:03.5]} 39. Qg7+ {[%clk 0:01:34.1]} 39... Ke8 {[%clk 0:00:04.8]} 40. Qg8+
{[%clk 0:01:34.7]} 40... Kd7 {[%clk 0:00:06.3]} 41. Qxc8+ {[%clk 0:01:32.4]}
41... Kxc8 {[%clk 0:00:07.6]} 42. e6 {[%clk 0:01:29.5]} 42... fxe6 {[%clk
0:00:08.3]} 43. f7 {[%clk 0:01:28.7]} 43... exf5 {[%clk 0:00:09.7]} 44. f8=Q+
{[%clk 0:01:28.9]} 44... Kb7 {[%clk 0:00:10.6]} 45. Qxf5 {[%clk 0:01:29.4]}
45... Rxb2 {[%clk 0:00:12]} 46. Qxd5+ {[%clk 0:01:30.5]} 46... Kb6 {[%clk
0:00:13.4]} 47. h5 {[%clk 0:01:31]} 47... b4 {[%clk 0:00:09.4]} 48. h6 {[%clk
0:01:32.1]} 48... b3 {[%clk 0:00:10.6]} 49. Qxb3+ {[%clk 0:01:31.9]} 1-0

[Event "*** Titled Tuesday 3|2 Blitz"]
[Site "Chess.com"]
[Date "2016.10.04"]
[Round "2"]
[White "spirals5"]
[Black "Joshukid"]
[Result "0-1"]
[WhiteElo "2261"]
[BlackElo "2347"]
[TimeControl "180+2"]
[EndTime "17:20:57 PDT"]
[Termination "Joshukid won by resignation"]

1. e4 {[%clk 0:03:01.9]} 1... c5 {[%clk 0:03:00.6]} 2. Nc3 {[%clk 0:03:02.4]}
2... a6 {[%clk 0:02:56.3]} 3. g3 {[%clk 0:03:03.2]} 3... b5 {[%clk 0:02:56.9]}
4. Bg2 {[%clk 0:03:04.3]} 4... Bb7 {[%clk 0:02:58.3]} 5. d3 {[%clk 0:03:03.5]}
5... d6 {[%clk 0:02:59.5]} 6. f4 {[%clk 0:03:04.2]} 6... g6 {[%clk 0:03:00]} 7.
Nf3 {[%clk 0:03:04.7]} 7... Bg7 {[%clk 0:03:01.4]} 8. O-O {[%clk 0:03:05.7]}
8... Nf6 {[%clk 0:03:01.3]} 9. Kh1 {[%clk 0:03:06]} 9... O-O {[%clk 0:03:02.4]}
10. Be3 {[%clk 0:03:06.6]} 10... Qc7 {[%clk 0:03:02.2]} 11. h3 {[%clk
0:03:02.8]} 11... b4 {[%clk 0:03:03.5]} 12. Ne2 {[%clk 0:03:02.2]} 12... Nh5
{[%clk 0:03:04.2]} 13. g4 {[%clk 0:03:00.8]} 13... Nf6 {[%clk 0:03:02.7]} 14.
Ng3 {[%clk 0:02:59.9]} 14... d5 {[%clk 0:03:00.3]} 15. e5 {[%clk 0:02:59.9]}
15... Nfd7 {[%clk 0:03:01.7]} 16. d4 {[%clk 0:03:00.1]} 16... cxd4 {[%clk
0:03:01.8]} 17. Nxd4 {[%clk 0:02:59.2]} 17... e6 {[%clk 0:03:03.2]} 18. g5
{[%clk 0:02:58.9]} 18... Nc6 {[%clk 0:03:03.8]} 19. h4 {[%clk 0:02:52.4]} 19...
Rfe8 {[%clk 0:03:03.5]} 20. h5 {[%clk 0:02:52.8]} 20... Ncxe5 {[%clk 0:02:48.5]}
21. fxe5 {[%clk 0:02:53]} 21... Qxe5 {[%clk 0:02:50.4]} 22. Qe1 {[%clk
0:02:41.4]} 22... f5 {[%clk 0:02:34.3]} 23. gxf6 {[%clk 0:02:41.1]} 23... Nxf6
{[%clk 0:02:35.2]} 24. Rd1 {[%clk 0:02:14.8]} 24... gxh5 {[%clk 0:02:28.2]} 25.
Bf4 {[%clk 0:02:10.4]} 25... Qxe1 {[%clk 0:02:29]} 26. Rfxe1 {[%clk 0:02:10.7]}
26... Ng4 {[%clk 0:02:29.2]} 27. Nxe6 {[%clk 0:01:57]} 27... Nf2+ {[%clk
0:02:28.5]} 28. Kg1 {[%clk 0:01:57.4]} 28... Nxd1 {[%clk 0:02:29.4]} 29. Nxh5
{[%clk 0:01:51.3]} 29... Bxb2 {[%clk 0:02:17.4]} 30. Bh3 {[%clk 0:01:32.8]}
30... Bc8 {[%clk 0:01:51]} 31. Rxd1 {[%clk 0:01:23.1]} 31... Bxe6 {[%clk
0:01:50.4]} 32. Bg2 {[%clk 0:01:11.3]} 32... Rad8 {[%clk 0:01:43.8]} 33. Rd3
{[%clk 0:01:09.1]} 33... Bf7 {[%clk 0:01:38.8]} 34. Rg3+ {[%clk 0:01:08.9]}
34... Kh8 {[%clk 0:01:34.5]} 35. Rh3 {[%clk 0:01:03.2]} 35... Bg6 {[%clk
0:01:30.2]} 36. Bg5 {[%clk 0:00:48.5]} 36... Re1+ {[%clk 0:01:21.3]} 37. Kf2
{[%clk 0:00:46.2]} 37... Rde8 {[%clk 0:01:22.6]} 38. Bf6+ {[%clk 0:00:43.5]}
38... Bxf6 {[%clk 0:01:19.7]} 39. Nxf6 {[%clk 0:00:44]} 39... R8e2+ {[%clk
0:01:18.3]} 40. Kg3 {[%clk 0:00:38.9]} 40... Re3+ {[%clk 0:01:19.3]} 41. Bf3
{[%clk 0:00:34.4]} 41... Rxf3+ {[%clk 0:01:11.5]} 42. Kxf3 {[%clk 0:00:33.1]}
42... Rf1+ {[%clk 0:01:13]} 43. Ke3 {[%clk 0:00:28.3]} 43... Rxf6 {[%clk
0:01:14.3]} 44. Kd4 {[%clk 0:00:28.9]} 44... Bxc2 {[%clk 0:01:11.7]} 45. Kxd5
{[%clk 0:00:21.4]} 45... a5 {[%clk 0:01:12.6]} 46. Kc5 {[%clk 0:00:21.9]} 46...
Rf5+ {[%clk 0:01:11.1]} 47. Kc4 {[%clk 0:00:22.4]} 47... Rf4+ {[%clk 0:01:09.5]}
48. Kb5 {[%clk 0:00:21.6]} 48... a4 {[%clk 0:01:10.2]} 49. Rh2 {[%clk
0:00:21.7]} 49... b3 {[%clk 0:01:10.7]} 50. axb3 {[%clk 0:00:22.8]} 50... axb3
{[%clk 0:01:12.6]} 0-1

[Event "*** Titled Tuesday 3|2 Blitz"]
[Site "Chess.com"]
[Date "2016.10.04"]
[Round "2"]
[White "chessking2151"]
[Black "MattyDPerrine"]
[Result "0-1"]
[WhiteElo "2332"]
[BlackElo "2237"]
[TimeControl "180+2"]
[EndTime "17:21:01 PDT"]
[Termination "MattyDPerrine won by resignation"]

1. e4 {[%clk 0:03:02]} 1... c5 {[%clk 0:03:00.6]} 2. c3 {[%clk 0:03:02.1]} 2...
Nf6 {[%clk 0:02:59.7]} 3. e5 {[%clk 0:03:02]} 3... Nd5 {[%clk 0:03:00.4]} 4. Nf3
{[%clk 0:02:58]} 4... e6 {[%clk 0:03:01.3]} 5. d4 {[%clk 0:02:51.5]} 5... cxd4
{[%clk 0:03:02.3]} 6. cxd4 {[%clk 0:02:52.3]} 6... d6 {[%clk 0:03:03.5]} 7. Bc4
{[%clk 0:02:51.1]} 7... Nb6 {[%clk 0:02:57.9]} 8. Bd3 {[%clk 0:02:49.5]} 8...
Bd7 {[%clk 0:02:55.7]} 9. O-O {[%clk 0:02:41.4]} 9... Bc6 {[%clk 0:02:56.3]} 10.
Nc3 {[%clk 0:02:41.5]} 10... Be7 {[%clk 0:02:56.6]} 11. Qe2 {[%clk 0:02:34.3]}
11... O-O {[%clk 0:02:53.9]} 12. Rd1 {[%clk 0:02:32.4]} 12... N8d7 {[%clk
0:02:49.3]} 13. Bf4 {[%clk 0:02:30.9]} 13... dxe5 {[%clk 0:02:47]} 14. dxe5
{[%clk 0:02:26.5]} 14... Nd5 {[%clk 0:02:46.2]} 15. Bg3 {[%clk 0:02:16.1]} 15...
Nxc3 {[%clk 0:02:36.2]} 16. bxc3 {[%clk 0:02:15.5]} 16... Qa5 {[%clk 0:02:37.7]}
17. Nd4 {[%clk 0:01:52.2]} 17... Nc5 {[%clk 0:02:25.1]} 18. Nxc6 {[%clk
0:01:16]} 18... bxc6 {[%clk 0:02:24.9]} 19. Be4 {[%clk 0:01:09.6]} 19... Rac8
{[%clk 0:02:14.5]} 20. Rac1 {[%clk 0:01:07.4]} 20... Rfd8 {[%clk 0:01:10.9]} 21.
Rxd8+ {[%clk 0:00:55.2]} 21... Bxd8 {[%clk 0:00:56.8]} 22. Bb1 {[%clk
0:00:49.7]} 22... g6 {[%clk 0:00:49]} 23. h4 {[%clk 0:00:47.4]} 23... Rb8 {[%clk
0:00:40.8]} 24. h5 {[%clk 0:00:25.7]} 24... Bg5 {[%clk 0:00:39.9]} 25. f4 {[%clk
0:00:25.6]} 25... Be7 {[%clk 0:00:37.3]} 26. Bf2 {[%clk 0:00:24.8]} 26... Na4
{[%clk 0:00:30.4]} 27. Qd3 {[%clk 0:00:20.5]} 27... Rd8 {[%clk 0:00:24.4]} 28.
Qc2 {[%clk 0:00:20.3]} 28... Bc5 {[%clk 0:00:23]} 29. hxg6 {[%clk 0:00:18.6]}
29... hxg6 {[%clk 0:00:23.5]} 30. Bxc5 {[%clk 0:00:13]} 30... Qxc5+ {[%clk
0:00:21.3]} 31. Qf2 {[%clk 0:00:13.4]} 31... Qa3 {[%clk 0:00:11.4]} 32. Qc2
{[%clk 0:00:12.4]} 32... Rb8 {[%clk 0:00:10.4]} 33. Qd3 {[%clk 0:00:10.7]} 33...
Qxc1+ {[%clk 0:00:10.6]} 34. Kh2 {[%clk 0:00:11.8]} 34... Qxf4+ {[%clk
0:00:12.1]} 35. g3 {[%clk 0:00:12.8]} 35... Rb2+ {[%clk 0:00:11.5]} 36. Kh3
{[%clk 0:00:13.3]} 36... Qf5+ {[%clk 0:00:12.1]} 37. Qxf5 {[%clk 0:00:14.2]}
37... gxf5 {[%clk 0:00:14]} 0-1

[Event "*** Titled Tuesday 3|2 Blitz"]
[Site "Chess.com"]
[Date "2016.10.04"]
[Round "2"]
[White "jlandaw"]
[Black "Schwarzschidl"]
[Result "1-0"]
[WhiteElo "2284"]
[BlackElo "2326"]
[TimeControl "180+2"]
[EndTime "17:21:04 PDT"]
[Termination "jlandaw won by resignation"]

1. e4 {[%clk 0:03:02]} 1... e5 {[%clk 0:03:00.3]} 2. Nf3 {[%clk 0:03:02.5]} 2...
Nc6 {[%clk 0:02:59.7]} 3. Bb5 {[%clk 0:03:03.5]} 3... a6 {[%clk 0:02:59.8]} 4.
Ba4 {[%clk 0:03:04.3]} 4... Nf6 {[%clk 0:02:59.6]} 5. O-O {[%clk 0:03:05]} 5...
b5 {[%clk 0:03:01.1]} 6. Bb3 {[%clk 0:03:06]} 6... Bc5 {[%clk 0:03:02.5]} 7. d3
{[%clk 0:03:05]} 7... d6 {[%clk 0:03:02.8]} 8. c3 {[%clk 0:03:05.2]} 8... h6
{[%clk 0:02:53.8]} 9. h3 {[%clk 0:03:04]} 9... Bb6 {[%clk 0:02:47.4]} 10. a4
{[%clk 0:03:00.2]} 10... Rb8 {[%clk 0:02:42.9]} 11. axb5 {[%clk 0:02:45.8]}
11... axb5 {[%clk 0:02:44.8]} 12. Na3 {[%clk 0:02:47.2]} 12... b4 {[%clk
0:02:44.5]} 13. Nc4 {[%clk 0:02:47.3]} 13... bxc3 {[%clk 0:02:45.7]} 14. bxc3
{[%clk 0:02:37.8]} 14... Be6 {[%clk 0:02:41.3]} 15. Ba4 {[%clk 0:02:23.3]} 15...
Bd7 {[%clk 0:02:38.8]} 16. Re1 {[%clk 0:02:10.4]} 16... O-O {[%clk 0:02:37]} 17.
d4 {[%clk 0:02:02]} 17... Re8 {[%clk 0:02:29.8]} 18. Nxb6 {[%clk 0:00:55.2]}
18... Rxb6 {[%clk 0:02:24.9]} 19. d5 {[%clk 0:00:53.4]} 19... Ne7 {[%clk
0:02:23.2]} 20. c4 {[%clk 0:00:53.7]} 20... Rb4 {[%clk 0:02:10.5]} 21. Bxd7
{[%clk 0:00:52.6]} 21... Nxd7 {[%clk 0:02:10.3]} 22. Qc2 {[%clk 0:00:52.8]}
22... Ng6 {[%clk 0:01:44.1]} 23. Be3 {[%clk 0:00:49.3]} 23... Nf4 {[%clk
0:01:35]} 24. Ra7 {[%clk 0:00:45.3]} 24... Qb8 {[%clk 0:01:27.9]} 25. Rea1
{[%clk 0:00:44.9]} 25... Rb2 {[%clk 0:01:27]} 26. Qa4 {[%clk 0:00:43.3]} 26...
Rd8 {[%clk 0:01:08.8]} 27. Kh2 {[%clk 0:00:35.1]} 27... Nb6 {[%clk 0:01:07.4]}
28. Qc6 {[%clk 0:00:35.1]} 28... Rc2 {[%clk 0:00:59.1]} 29. Rb7 {[%clk
0:00:29.9]} 29... Nxc4 {[%clk 0:00:44.2]} 30. Rxb8 {[%clk 0:00:27]} 30... Rxb8
{[%clk 0:00:46.1]} 31. Qxc7 {[%clk 0:00:20.7]} 31... Rbb2 {[%clk 0:00:47.6]} 32.
Ba7 {[%clk 0:00:20.6]} 32... Rxf2 {[%clk 0:00:45.1]} 33. Bxf2 {[%clk 0:00:20.9]}
33... Rxf2 {[%clk 0:00:45.5]} 34. Qc8+ {[%clk 0:00:22]} 34... Kh7 {[%clk
0:00:46.4]} 35. Qxc4 {[%clk 0:00:23.7]} 35... Rxg2+ {[%clk 0:00:47.2]} 36. Kh1
{[%clk 0:00:25.4]} 36... Rg3 {[%clk 0:00:49.1]} 37. Nh2 {[%clk 0:00:26]} 37...
Rxh3 {[%clk 0:00:50]} 38. Ra2 {[%clk 0:00:27.4]} 38... Rh4 {[%clk 0:00:49.5]}
39. Kg1 {[%clk 0:00:27.6]} 39... Ng6 {[%clk 0:00:49.8]} 40. Nf3 {[%clk
0:00:27.6]} 40... Rf4 {[%clk 0:00:50.2]} 41. Rf2 {[%clk 0:00:26.2]} 41... f5
{[%clk 0:00:51.6]} 42. Nd2 {[%clk 0:00:25.5]} 42... Rg4+ {[%clk 0:00:52.8]} 43.
Rg2 {[%clk 0:00:26.9]} 43... Rf4 {[%clk 0:00:54.1]} 44. Qa6 {[%clk 0:00:24.2]}
44... fxe4 {[%clk 0:00:53.9]} 45. Qxd6 {[%clk 0:00:25.4]} 45... Nh4 {[%clk
0:00:55.5]} 46. Qxe5 {[%clk 0:00:24]} 46... Nxg2 {[%clk 0:00:56.6]} 47. Kxg2
{[%clk 0:00:25.5]} 47... Rg4+ {[%clk 0:00:58.1]} 48. Kf2 {[%clk 0:00:26.7]}
48... h5 {[%clk 0:00:58.7]} 49. Qxh5+ {[%clk 0:00:27.2]} 1-0

[Event "*** Titled Tuesday 3|2 Blitz"]
[Site "Chess.com"]
[Date "2016.10.04"]
[Round "2"]
[White "GulamaliRises"]
[Black "Jahonas"]
[Result "1-0"]
[WhiteElo "2481"]
[BlackElo "2173"]
[TimeControl "180+2"]
[EndTime "17:21:07 PDT"]
[Termination "GulamaliRises won by resignation"]

1. Nf3 {[%clk 0:03:02]} 1... d5 {[%clk 0:02:56.8]} 2. c4 {[%clk 0:03:02.6]} 2...
d4 {[%clk 0:02:57.1]} 3. b4 {[%clk 0:03:02.5]} 3... a5 {[%clk 0:02:57.3]} 4. b5
{[%clk 0:03:02.6]} 4... c5 {[%clk 0:02:57.9]} 5. g3 {[%clk 0:02:57.3]} 5... b6
{[%clk 0:02:58.5]} 6. Bg2 {[%clk 0:02:53.2]} 6... Bb7 {[%clk 0:02:59.6]} 7. O-O
{[%clk 0:02:54.4]} 7... Nf6 {[%clk 0:02:58.6]} 8. d3 {[%clk 0:02:41.1]} 8...
Nbd7 {[%clk 0:02:53.7]} 9. e4 {[%clk 0:02:41.6]} 9... e5 {[%clk 0:02:49.2]} 10.
Nh4 {[%clk 0:02:42.3]} 10... g6 {[%clk 0:02:45.7]} 11. Qe1 {[%clk 0:02:43.1]}
11... Bd6 {[%clk 0:02:44.2]} 12. f4 {[%clk 0:02:37.6]} 12... Ng4 {[%clk
0:02:36.7]} 13. h3 {[%clk 0:02:35.2]} 13... Ne3 {[%clk 0:02:36.4]} 14. Bxe3
{[%clk 0:02:36.5]} 14... dxe3 {[%clk 0:02:37]} 15. Nc3 {[%clk 0:02:21.8]} 15...
exf4 {[%clk 0:02:35.9]} 16. gxf4 {[%clk 0:02:20.6]} 16... O-O {[%clk 0:02:32.7]}
17. e5 {[%clk 0:01:54.7]} 17... Bxg2 {[%clk 0:02:31]} 18. Nxg2 {[%clk
0:01:56.6]} 18... Nxe5 {[%clk 0:02:27]} 19. fxe5 {[%clk 0:01:56.8]} 19... Bxe5
{[%clk 0:02:27.9]} 20. Nd5 {[%clk 0:01:38.6]} 20... Qg5 {[%clk 0:01:52.4]} 21.
Rf3 {[%clk 0:01:04.6]} 21... f5 {[%clk 0:01:46.4]} 22. Rd1 {[%clk 0:00:48.4]}
22... Rae8 {[%clk 0:01:42.3]} 23. Qe2 {[%clk 0:00:46.6]} 23... f4 {[%clk
0:01:37.7]} 24. Nxb6 {[%clk 0:00:38.8]} 24... Qd8 {[%clk 0:01:11]} 25. Nd5
{[%clk 0:00:39.1]} 25... g5 {[%clk 0:01:10.7]} 26. Rdf1 {[%clk 0:00:28.9]} 26...
Bd4 {[%clk 0:01:06.6]} 27. h4 {[%clk 0:00:20.9]} 27... h6 {[%clk 0:00:51.3]} 28.
hxg5 {[%clk 0:00:22.1]} 28... hxg5 {[%clk 0:00:51.9]} 29. Ngxf4 {[%clk
0:00:23.7]} 29... Rf7 {[%clk 0:00:35.4]} 30. Nh5 {[%clk 0:00:21.4]} 30... Ref8
{[%clk 0:00:31.8]} 31. Rxf7 {[%clk 0:00:20.4]} 31... Rxf7 {[%clk 0:00:32.9]} 32.
Rxf7 {[%clk 0:00:22.3]} 32... Kxf7 {[%clk 0:00:34.5]} 33. Kg2 {[%clk 0:00:20.1]}
33... Kg6 {[%clk 0:00:33.2]} 34. Qf3 {[%clk 0:00:14.2]} 34... Qh8 {[%clk
0:00:21.3]} 35. Ng3 {[%clk 0:00:11.6]} 35... Qh4 {[%clk 0:00:17]} 36. Ne7+
{[%clk 0:00:12.1]} 36... Kh7 {[%clk 0:00:17.3]} 37. Qf7+ {[%clk 0:00:13.3]}
37... Bg7 {[%clk 0:00:17.6]} 38. Qg8+ {[%clk 0:00:14.6]} 38... Kh6 {[%clk
0:00:18]} 39. Ngf5+ {[%clk 0:00:15]} 39... Kh5 {[%clk 0:00:18.9]} 40. Nxh4
{[%clk 0:00:13.1]} 40... Kh6 {[%clk 0:00:17.9]} 41. Nef5+ {[%clk 0:00:12.1]} 1-0